fUSD/lending_fUSD_20260305
["ID","MTS","AMOUNT","RATE_DAILY","PERIOD"]
[407721939,1772700648434,-347.36,0.0004,120]
[407721940,1772700648444,-645.19,0.0004,120]
[407721941,1772700648454,-1027.75,0.0004,120]
[407721942,1772700648463,-317.71,0.0004,120]
[407721943,1772700648472,-325.52,0.0004,120]
[407721944,1772700648482,-370.02,0.0004,120]
[407721945,1772700648492,-711.12,0.0004,120]
[407721946,1772700648501,-198.69,0.0004,120]
[407721947,1772700648511,-153.0,0.0004,120]
[407721948,1772700648520,-1000.0,0.0004,120]
[407721949,1772700648529,-151.0,0.0004,120]
[407721950,1772700648539,-2000.0,0.0004,120]
[407721951,1772700648548,-571.75747747,0.0004,21]
[407721952,1772700648557,-150.93,0.0004,2]
[407721953,1772700648570,-795.46336,0.00040088,30]
[407721954,1772700648580,-150.0,0.00040165,2]
[407721955,1772700648589,-2000.0,0.000402,120]
[407721956,1772700648599,-253.0,0.00040274,7]
[407721957,1772700648608,-795.46336,0.00040288,30]
[407721958,1772700648618,-506.0,0.000404,25]
[407721959,1772700648628,-1440.1,0.00040446,30]
[407721960,1772700648638,-795.46336,0.00040488,30]
[407721961,1772700648648,-204.864366,0.000406,20]
[407721962,1772700648657,-150.0,0.00040687,7]
[407721963,1772700648667,-241.0,0.00040687,7]
[407721964,1772700648677,-795.46336,0.00040688,30]
[407721965,1772700648686,-795.46336,0.00040888,30]
[407721966,1772700648696,-151.0,0.000409,120]
[407721967,1772700648705,-649.24901751,0.00041,30]
[407721968,1772700648716,-153.0,0.00041,120]
[407721969,1772700648725,-2000.0,0.00041,120]
[407721970,1772700648734,-1033.7242933,0.00041068,120]
[407721971,1772700648744,-443.02469713,0.00041068,120]
[407721972,1772700648753,-795.46336,0.00041088,30]
[407721973,1772700648766,-155.0,0.00041094,120]
[407721974,1772700648776,-150.0,0.00041096,10]
[407721975,1772700648785,-300.0,0.00041096,10]
[407721976,1772700648795,-500.0,0.00041096,7]
[407721977,1772700648804,-342.0,0.00041096,60]
[407721978,1772700648814,-395.0,0.00041096,120]
[407721979,1772700648823,-300.0,0.00041096,30]
[407721980,1772700648832,-300.0,0.00041096,30]
[407721981,1772700648842,-300.0,0.00041096,30]
[407721982,1772700648852,-300.0,0.00041096,30]
[407721983,1772700648866,-300.0,0.00041096,30]
[407721984,1772700648876,-1689.33,0.00041096,2]
[407721985,1772700648885,-176.6814291,0.000411,60]
[407721986,1772700648895,-1091.64636051,0.00041174,7]
[407721987,1772700648905,-175.29342847,0.000412,10]
[407721988,1772700648914,-152.0,0.00041234,4]
[407721989,1772700648923,-795.46336,0.00041288,30]
[407721990,1772700648934,-795.46336,0.00041488,30]
[407721991,1772700648943,-250.0,0.00041644,10]
[407721992,1772700648954,-1000.0,0.00041644,7]
[407721993,1772700648965,-500.0,0.00041644,10]
[407721994,1772700648975,-1000.0,0.00041644,10]
[407721995,1772700648984,-795.46336,0.00041688,30]
[407721996,1772700648992,-500.0,0.00041835,63]
[407721997,1772700649002,-795.46336,0.00041888,30]
[407721998,1772700649012,-187.0,0.00041889,120]
[407721999,1772700649022,-153.0,0.000419,120]
[407722000,1772700649032,-151.0,0.000419,120]
[407722001,1772700649042,-300.0,0.00041901,30]
[407722002,1772700649051,-20871.36,0.00041902,2]
[407722003,1772700649061,-2981.48,0.00041902,2]
[407722004,1772700649070,-4438.24,0.00041902,2]
[407722005,1772700649079,-1000.0,0.00041918,10]
[407722006,1772700649088,-600.0,0.00041918,10]
[407722007,1772700649098,-294.0,0.00041918,14]
[407722008,1772700649107,-644.0,0.00042,120]
[407722009,1772700649118,-297.0,0.00042,120]
[407722010,1772700649128,-296.0,0.00042,120]
[407722011,1772700649137,-296.0,0.00042,120]
[407722012,1772700649146,-296.0,0.00042,120]
[407722013,1772700649156,-296.0,0.00042,120]
[407722014,1772700649167,-296.0,0.00042,120]
[407722015,1772700649179,-296.0,0.00042,120]
[407722016,1772700649188,-296.0,0.00042,120]
[407722017,1772700649197,-296.0,0.00042,120]
[407722018,1772700649209,-296.0,0.00042,120]
[407722019,1772700649219,-296.0,0.00042,120]
[407722020,1772700649228,-296.0,0.00042,120]
[407722021,1772700649237,-296.0,0.00042,120]
[407722022,1772700649249,-296.0,0.00042,120]
[407722023,1772700649259,-296.0,0.00042,120]
[407722024,1772700649268,-296.0,0.00042,120]
[407722025,1772700649277,-296.0,0.00042,120]
[407722026,1772700649287,-915.0,0.00042,120]
[407722027,1772700649297,-150.0,0.00042,120]
[407722028,1772700649306,-160.0,0.00042,120]
[407722029,1772700649315,-160.0,0.00042,120]
[407722030,1772700649324,-488.0,0.00042018,120]
[407722031,1772700649334,-391.0,0.00042087,5]
[407722032,1772700649344,-290.67608486,0.00042142,72]
[407722033,1772700649353,-150.0,0.00042173,120]
[407722034,1772700649370,-150.0,0.00042174,14]
[407722035,1772700649383,-223.0,0.00042174,14]
[407722036,1772700649392,-161.0,0.00042174,30]
[407722037,1772700649402,-183.75782658,0.00042191,120]
[407722038,1772700649411,-350.0,0.00042192,10]
[407722039,1772700649421,-339.41571392,0.00042192,10]
[407722040,1772700649430,-952.34625423,0.00042192,7]
[407722041,1772700649440,-1048.50100127,0.00042226,2]
[407722042,1772700649449,-306.61635286,0.00042226,2]
[407722043,1772700649460,-856.13486002,0.00042226,2]
[407722044,1772700649469,-306.8296831,0.00042226,2]
[407722045,1772700649479,-300.0,0.00042226,2]
[407722046,1772700649488,-300.0,0.00042226,2]
[407722047,1772700649498,-1084.19175733,0.00042226,2]
[407722048,1772700649508,-300.0,0.00042226,2]
[407722049,1772700649518,-300.0,0.00042226,2]
[407722050,1772700649528,-300.0,0.00042226,2]
[407722051,1772700649537,-1048.50100127,0.00042226,2]
[407722052,1772700649547,-409.10557655,0.00042226,2]
[407722053,1772700649557,-848.93095948,0.00042226,2]
[407722054,1772700649567,-300.0,0.00042226,2]
[407722055,1772700649576,-861.22556341,0.00042226,2]
[407722056,1772700649586,-300.0,0.00042226,2]
[407722057,1772700649596,-300.0,0.00042226,2]
[407722058,1772700649606,-300.78628592,0.00042226,2]
[407722059,1772700649616,-497.60819881,0.00042234,2]
[407722060,1772700649626,-150.0,0.00042302,7]
[407722061,1772700649636,-150.0,0.00042302,7]
[407722062,1772700649646,-150.0,0.00042302,7]
[407722063,1772700649656,-216.0,0.00042302,7]
[407722064,1772700649665,-457.13,0.000424,14]
[407722065,1772700649675,-1000.0,0.00042426,90]
[407722066,1772700649685,-500.0,0.00042438,120]
[407722067,1772700649695,-500.0,0.00042438,120]
[407722068,1772700649704,-150.0,0.000425,120]
[407722069,1772700649714,-2651.5445,0.000425,7]
[407722070,1772700649724,-1440.1,0.00042537,30]
[407722071,1772700649734,-500.0,0.00042575,120]
[407722072,1772700649743,-500.0,0.00042575,120]
[407722073,1772700649753,-200.0,0.000426,23]
[407722074,1772700649764,-500.0,0.00042712,120]
[407722075,1772700649774,-500.0,0.00042712,120]
[407722076,1772700649784,-450.0,0.0004274,10]
[407722077,1772700649797,-900.0,0.0004274,10]
[407722078,1772700649808,-571.27818364,0.0004274,120]
[407722079,1772700649820,-412.72299569,0.0004274,10]
[407722080,1772700649831,-151.0,0.000428,120]
[407722081,1772700649842,-716.46354233,0.000428,120]
[407722082,1772700649852,-500.0,0.00042849,120]
[407722083,1772700649862,-500.0,0.00042849,120]
[407722084,1772700649871,-153.0,0.000429,120]
[407722085,1772700649881,-2691.09483055,0.0004295,10]
[407722086,1772700649891,-500.0,0.00042986,120]
[407722087,1772700649902,-500.0,0.00042986,120]
[407722088,1772700649913,-500.0,0.00042986,2]
[407722089,1772700649927,-150.0,0.00043,120]
[407722090,1772700649939,-161.0526422,0.00043,30]
[407722091,1772700649950,-350.0,0.00043052,2]
[407722092,1772700649960,-152.0,0.00043063,5]
[407722093,1772700649970,-250.0,0.00043068,120]
[407722094,1772700649981,-250.0,0.00043068,120]
[407722095,1772700649992,-250.0,0.00043068,120]
[407722096,1772700650003,-250.0,0.00043068,120]
[407722097,1772700650013,-250.0,0.00043068,120]
[407722098,1772700650023,-250.0,0.00043068,120]
[407722099,1772700650033,-500.0,0.0004309,67]
[407722100,1772700650043,-228.57481425,0.000431,30]
[407722101,1772700650053,-150.0,0.00043121,7]
[407722102,1772700650063,-150.0,0.00043121,7]
[407722103,1772700650073,-150.0,0.00043121,7]
[407722104,1772700650084,-150.0,0.00043121,7]
[407722105,1772700650094,-201.0,0.00043121,7]
[407722106,1772700650104,-500.0,0.00043123,120]
[407722107,1772700650113,-500.0,0.00043123,120]
[407722108,1772700650123,-4909.8902181,0.00043144,15]
[407722109,1772700650133,-221.0,0.0004315,14]
[407722110,1772700650142,-500.0,0.0004326,120]
[407722111,1772700650152,-500.0,0.0004326,120]
[407722112,1772700650162,-580.87024451,0.00043287,120]
[407722113,1772700650176,-550.0,0.00043288,10]
[407722114,1772700650189,-500.0,0.00043397,120]
[407722115,1772700650198,-500.0,0.00043397,120]
[407722116,1772700650208,-1566.0,0.00043423,60]
[407722117,1772700650219,-150.0,0.000435,120]
[407722118,1772700650541,-300.0,0.00043507,30]
[407722119,1772700650551,-300.0,0.00043507,30]
[407722120,1772700650562,-300.0,0.00043507,30]
[407722121,1772700650571,-300.0,0.00043507,30]
[407722122,1772700650580,-300.0,0.00043507,30]
[407722123,1772700650590,-300.0,0.00043507,30]
[407722124,1772700650599,-300.0,0.00043507,30]
[407722125,1772700650608,-300.0,0.00043507,30]
[407722126,1772700650618,-300.0,0.00043507,30]
[407722127,1772700650627,-300.0,0.00043507,30]
[407722128,1772700650637,-300.0,0.00043507,30]
[407722129,1772700650646,-300.0,0.00043507,30]
[407722130,1772700650656,-300.0,0.00043507,30]
[407722131,1772700650665,-300.0,0.00043507,30]
[407722132,1772700650675,-300.0,0.00043507,30]
[407722133,1772700650684,-300.0,0.00043507,30]
[407722134,1772700650694,-300.0,0.00043507,30]
[407722135,1772700650704,-300.0,0.00043507,30]
[407722136,1772700650713,-300.0,0.00043507,30]
[407722137,1772700650723,-300.0,0.00043507,30]
[407722138,1772700650733,-431.39303726,0.00043534,120]
[407722139,1772700650742,-500.0,0.00043534,120]
[407722140,1772700650752,-1084.31216265,0.00043562,10]
[407722141,1772700650763,-150.0,0.00043594,14]
[407722142,1772700650776,-192.0,0.00043594,14]
[407722143,1772700650787,-635.21163987,0.00043671,120]
[407722144,1772700650797,-1000.0,0.000438,30]
[407722145,1772700650808,-151.0,0.000438,120]
[407722146,1772700650818,-924.0153701,0.00043808,120]
[407722147,1772700650829,-1363.36106609,0.00043835,120]
[407722148,1772700650838,-650.0,0.00043836,10]
[407722149,1772700650848,-800.0,0.00043836,120]
[407722150,1772700650858,-800.0,0.00043836,120]
[407722151,1772700650868,-800.0,0.00043836,120]
[407722152,1772700650878,-800.0,0.00043836,120]
[407722153,1772700650889,-800.0,0.00043836,120]
[407722154,1772700650899,-800.0,0.00043836,120]
[407722155,1772700650909,-800.0,0.00043836,120]
[407722156,1772700650918,-800.0,0.00043836,120]
[407722157,1772700650928,-800.0,0.00043836,120]
[407722158,1772700650938,-800.0,0.00043836,120]
[407722159,1772700650947,-800.0,0.00043836,120]
[407722160,1772700650957,-800.0,0.00043836,120]
[407722161,1772700650968,-800.0,0.00043836,120]
[407722162,1772700650978,-800.0,0.00043836,120]
[407722163,1772700650988,-800.0,0.00043836,120]
[407722164,1772700650997,-800.0,0.00043836,120]
[407722165,1772700651007,-800.0,0.00043836,120]
[407722166,1772700651017,-800.0,0.00043836,120]
[407722167,1772700651027,-800.0,0.00043836,120]
[407722168,1772700651036,-686.791662,0.00043836,120]
[407722169,1772700651044,-158.45,0.00043836,120]
[407722170,1772700651054,-164.80367716,0.00043836,5]
[407722171,1772700651063,-392.0,0.00043897,120]
[407722172,1772700651073,-153.0,0.000439,120]
[407722173,1772700651082,-1841.5501063,0.00043912,120]
[407722174,1772700651091,-684.0,0.00043912,120]
[407722175,1772700651100,-463.2062806,0.00043912,120]
[407722176,1772700651109,-5000.0,0.00043912,120]
[407722177,1772700651118,-5000.0,0.00043912,120]
[407722178,1772700651127,-5000.0,0.00043912,120]
[407722179,1772700651136,-5000.0,0.00043912,120]
[407722180,1772700651145,-5000.0,0.00043912,120]
[407722181,1772700651154,-5000.0,0.00043912,120]
[407722182,1772700651163,-3354.083084,0.00043912,120]
[407722183,1772700651183,-653.0,0.00043913,120]
[407722184,1772700651191,-279.9073084,0.00043989,120]
[407722185,1772700651200,-582.28,0.00043989,120]
[407722186,1772700651210,-1256.33,0.00043989,120]
[407722187,1772700651219,-500.0,0.00044,30]
[407722188,1772700651228,-150.1036815,0.00044,120]
[407722189,1772700651237,-150.0,0.00044,120]
[407722190,1772700651247,-2000.0,0.00044,120]
[407722191,1772700651256,-203.051643,0.00044069,120]
[407722192,1772700651265,-457.13,0.000441,14]
[407722193,1772700651274,-488.0,0.00044119,120]
[407722194,1772700651283,-1042.4,0.00044184,120]
[407722195,1772700651292,-160.13,0.00044187,120]
[407722196,1772700651301,-164.90342018,0.00044236,7]
[407722197,1772700651310,-150.0,0.00044281,120]
[407722198,1772700651318,-160.13,0.00044287,120]
[407722199,1772700651327,-1089.0,0.00044297,120]
[407722200,1772700651336,-804.2507156,0.00044317,15]
[407722201,1772700651344,-352.17823064,0.00044317,3]
[407722202,1772700651353,-500.0,0.00044383,72]
[407722203,1772700651361,-258.7680076,0.00044384,10]
[407722204,1772700651370,-160.13,0.00044387,120]
[407722205,1772700651379,-173.56,0.00044401,60]
[407722206,1772700651387,-162.345,0.00044401,60]
[407722207,1772700651396,-200.0,0.00044412,2]
[407722208,1772700651405,-504.08967444,0.00044431,120]
[407722209,1772700651414,-160.13,0.00044487,120]
[407722210,1772700651423,-350.0,0.000445,2]
[407722211,1772700651432,-150.0,0.000445,120]
[407722212,1772700651441,-160.13,0.00044587,120]
[407722213,1772700651450,-200.0,0.000446,27]
[407722214,1772700651458,-150.0,0.00044607,14]
[407722215,1772700651468,-150.0,0.00044607,14]
[407722216,1772700651477,-199.82750225,0.00044607,14]
[407722217,1772700651486,-1440.1,0.00044628,120]
[407722218,1772700651495,-160.13,0.00044687,120]
[407722219,1772700651505,-151.0,0.000447,120]
[407722220,1772700651514,-245.37276384,0.00044728,7]
[407722221,1772700651524,-1042.4,0.00044729,120]
[407722222,1772700651534,-160.13,0.00044787,120]
[407722223,1772700651544,-1000.0,0.000448,60]
[407722224,1772700651554,-506.0,0.000448,29]
[407722225,1772700651564,-1566.0,0.00044855,60]
[407722226,1772700651574,-1041.0,0.00044882,2]
[407722227,1772700651584,-3501.0,0.00044882,2]
[407722228,1772700651594,-1341.0,0.00044882,2]
[407722229,1772700651604,-745.623,0.00044882,2]
[407722230,1772700651614,-1278.0,0.00044882,2]
[407722231,1772700651623,-1212.0,0.00044882,2]
[407722232,1772700651632,-921.0,0.00044882,2]
[407722233,1772700651642,-5989.0,0.00044882,2]
[407722234,1772700651652,-2459.0,0.00044882,2]
[407722235,1772700651661,-413.0,0.00044882,2]
[407722236,1772700651670,-160.13,0.00044887,120]
[407722237,1772700651680,-152.0,0.00044892,6]
[407722238,1772700651689,-153.0,0.000449,120]
[407722239,1772700651700,-162.345,0.00044949,60]
[407722240,1772700651710,-350.0,0.00044985,5]
[407722241,1772700651721,-160.13,0.00044987,120]
[407722242,1772700651734,-14415.0,0.00045,30]
[407722243,1772700651744,-600.0,0.00045,120]
[407722244,1772700651754,-280.0,0.00045,120]
[407722245,1772700651763,-279.0,0.00045,120]
[407722246,1772700651773,-2000.0,0.00045,120]
[407722247,1772700651784,-150.0,0.00045,120]
[407722248,1772700651796,-347.85181414,0.00045,30]
[407722249,1772700651807,-550.0,0.00045,120]
[407722250,1772700651818,-500.0,0.00045,120]
[407722251,1772700651830,-160.0,0.00045071,16]
[407722252,1772700651843,-160.13,0.00045087,120]
[407722253,1772700651853,-150.0,0.00045136,120]
[407722254,1772700651865,-500.0,0.00045178,30]
[407722255,1772700651884,-500.0,0.00045178,30]
[407722256,1772700651894,-500.0,0.00045178,30]
[407722257,1772700651904,-629.36891612,0.00045178,30]
[407722258,1772700651914,-210.0,0.00045178,21]
[407722259,1772700651924,-160.13,0.00045187,120]
[407722260,1772700651934,-150.0,0.00045239,120]
[407722261,1772700651944,-1042.4,0.00045274,120]
[407722262,1772700651954,-160.13,0.00045287,120]
[407722263,1772700651964,-150.0,0.00045324,14]
[407722264,1772700651973,-150.0,0.00045324,14]
[407722265,1772700651983,-283.0,0.00045324,14]
[407722266,1772700651999,-160.13,0.00045387,120]
[407722267,1772700652011,-266.0,0.00045454,21]
[407722268,1772700652020,-160.13,0.00045487,120]
[407722269,1772700652030,-162.345,0.00045497,60]
[407722270,1772700652039,-500.0,0.00045499,120]
[407722271,1772700652049,-500.0,0.00045499,120]
[407722272,1772700652059,-372.35,0.000455,60]
[407722273,1772700652069,-2000.0,0.000455,120]
[407722274,1772700652079,-150.0,0.000455,120]
[407722275,1772700652089,-2000.0,0.000455,120]
[407722276,1772700652099,-2000.0,0.000455,30]
[407722277,1772700652109,-2000.0,0.000455,10]
[407722278,1772700652119,-5000.0,0.000455,7]
[407722279,1772700652128,-5000.0,0.000455,60]
[407722280,1772700652139,-5000.0,0.000455,90]
[407722281,1772700652149,-5000.0,0.000455,120]
[407722282,1772700652159,-5000.0,0.000455,120]
[407722283,1772700652172,-5000.0,0.000455,120]
[407722284,1772700652181,-5000.0,0.000455,120]
[407722285,1772700652191,-5000.0,0.000455,120]
[407722286,1772700652201,-500.0,0.000455,120]
[407722287,1772700652211,-160.13,0.00045587,120]
[407722288,1772700652221,-1000.0,0.00045595,14]
[407722289,1772700652231,-195.97,0.00045616,120]
[407722290,1772700652241,-1000.0,0.00045622,14]
[407722291,1772700652250,-295.292,0.00045644,30]
[407722292,1772700652261,-160.13,0.00045687,120]
[407722293,1772700652270,-1000.0,0.00045688,60]
[407722294,1772700652280,-1000.0,0.00045688,14]
[407722295,1772700652290,-151.0,0.000457,120]
[407722296,1772700652300,-500.0,0.00045715,77]
[407722297,1772700652310,-1000.0,0.00045722,14]
[407722298,1772700652319,-1000.0,0.00045742,14]
[407722299,1772700652329,-1000.0,0.00045759,14]
[407722300,1772700652338,-9215.0,0.00045761,7]
[407722301,1772700652348,-160.13,0.00045787,120]
[407722302,1772700652358,-1000.0,0.00045793,14]
[407722303,1772700652368,-457.13,0.000458,14]
[407722304,1772700652377,-153.0,0.000458,120]
[407722305,1772700652387,-150.0,0.000458,120]
[407722306,1772700652398,-150.0,0.000458,120]
[407722307,1772700652408,-150.0,0.000458,120]
[407722308,1772700652417,-400.18,0.00045811,30]
[407722309,1772700652427,-1042.4,0.00045819,120]
[407722310,1772700652437,-1000.0,0.00045825,14]
[407722311,1772700652447,-150.0,0.00045826,14]
[407722312,1772700652456,-1000.0,0.00045846,14]
[407722313,1772700652466,-582.28,0.00045855,120]
[407722314,1772700652475,-1256.33,0.00045855,120]
[407722315,1772700652485,-1000.0,0.00045858,14]
[407722316,1772700652495,-166.0,0.00045861,14]
[407722317,1772700652505,-151.0,0.00045861,14]
[407722318,1772700652514,-166.0,0.00045861,14]
[407722319,1772700652524,-151.0,0.00045861,14]
[407722320,1772700652534,-166.0,0.00045861,14]
[407722321,1772700652544,-151.0,0.00045861,14]
[407722322,1772700652554,-1111.64475316,0.00045861,14]
[407722323,1772700652563,-166.0,0.00045861,14]
[407722324,1772700652572,-166.0,0.00045861,14]
[407722325,1772700652582,-151.0,0.00045861,14]
[407722326,1772700652591,-166.0,0.00045861,14]
[407722327,1772700652601,-151.0,0.00045861,14]
[407722328,1772700652610,-166.0,0.00045861,14]
[407722329,1772700652619,-151.0,0.00045861,14]
[407722330,1772700652629,-166.0,0.00045861,14]
[407722331,1772700652638,-151.0,0.00045861,14]
[407722332,1772700652647,-172.0,0.00045861,14]
[407722333,1772700652658,-151.0,0.00045861,14]
[407722334,1772700652667,-151.0,0.00045861,14]
[407722335,1772700652677,-151.0,0.00045861,14]
[407722336,1772700652687,-152.0,0.00045861,14]
[407722337,1772700652696,-151.0,0.00045861,14]
[407722338,1772700652705,-152.0,0.00045861,14]
[407722339,1772700652715,-151.0,0.00045861,14]
[407722340,1772700652725,-151.0,0.00045861,14]
[407722341,1772700652734,-152.0,0.00045861,14]
[407722342,1772700652744,-152.0,0.00045861,14]
[407722343,1772700652754,-151.0,0.00045861,14]
[407722344,1772700652764,-151.0,0.00045861,14]
[407722345,1772700652774,-151.0,0.00045861,14]
[407722346,1772700652783,-151.0,0.00045861,14]
[407722347,1772700652794,-1000.0,0.0004587,14]
[407722348,1772700652805,-1000.0,0.00045875,14]
[407722349,1772700652816,-150.0,0.00045881,120]
[407722350,1772700652825,-160.13,0.00045887,120]
[407722351,1772700652835,-150.0,0.00045889,14]
[407722352,1772700652844,-1000.0,0.00045889,14]
[407722353,1772700652854,-1000.0,0.00045897,14]
[407722354,1772700652863,-150.0,0.00045915,14]
[407722355,1772700652872,-1000.0,0.00045924,14]
[407722356,1772700652882,-1000.0,0.00045925,14]
[407722357,1772700652892,-1000.0,0.00045951,14]
[407722358,1772700652902,-150.0,0.00045952,14]
[407722359,1772700652912,-1000.0,0.00045963,14]
[407722360,1772700652930,-1000.0,0.00045968,14]
[407722361,1772700652950,-1000.0,0.00045971,14]
[407722362,1772700652969,-150.0,0.00045975,14]
[407722363,1772700652979,-1000.0,0.00045986,14]
[407722364,1772700652990,-160.13,0.00045987,120]
[407722365,1772700653000,-1000.0,0.0004599,14]
[407722366,1772700653011,-582.28,0.00045999,120]
[407722367,1772700653021,-1256.33,0.00045999,120]
[407722368,1772700653030,-1000.0,0.00046,120]
[407722369,1772700653040,-1000.0,0.00046,120]
[407722370,1772700653049,-2000.0,0.00046,120]
[407722371,1772700653059,-2000.0,0.00046,120]
[407722372,1772700653068,-150.0,0.00046,120]
[407722373,1772700653077,-665.56167418,0.00046,120]
[407722374,1772700653087,-2000.0,0.00046,7]
[407722375,1772700653096,-500.0,0.00046,120]
[407722376,1772700653106,-500.0,0.00046,60]
[407722377,1772700653115,-300.0,0.00046,30]
[407722378,1772700653124,-150.0,0.00046001,14]
[407722379,1772700653134,-800.0,0.00046001,13]
[407722380,1772700653143,-800.0,0.00046001,13]
[407722381,1772700653155,-800.0,0.00046001,13]
[407722382,1772700653166,-800.0,0.00046001,13]
[407722383,1772700653180,-800.0,0.00046001,13]
[407722384,1772700653189,-800.0,0.00046001,13]
[407722385,1772700653199,-800.0,0.00046001,13]
[407722386,1772700653211,-800.0,0.00046001,13]
[407722387,1772700653220,-800.0,0.00046001,13]
[407722388,1772700653230,-800.0,0.00046001,13]
[407722389,1772700653240,-800.0,0.00046001,13]
[407722390,1772700653251,-800.0,0.00046001,13]
[407722391,1772700653263,-800.0,0.00046001,13]
[407722392,1772700653272,-800.0,0.00046001,13]
[407722393,1772700653281,-800.0,0.00046001,13]
[407722394,1772700653291,-800.0,0.00046001,13]
[407722395,1772700653300,-800.0,0.00046001,13]
[407722396,1772700653310,-800.0,0.00046001,13]
[407722397,1772700653320,-800.0,0.00046001,13]
[407722398,1772700653329,-800.0,0.00046001,13]
[407722399,1772700653339,-800.0,0.00046001,13]
[407722400,1772700653348,-800.0,0.00046001,13]
[407722401,1772700653357,-800.0,0.00046001,13]
[407722402,1772700653367,-800.0,0.00046001,13]
[407722403,1772700653376,-800.0,0.00046001,13]
[407722404,1772700653385,-800.0,0.00046001,13]
[407722405,1772700653395,-800.0,0.00046001,13]
[407722406,1772700653404,-800.0,0.00046001,13]
[407722407,1772700653413,-800.0,0.00046001,13]
[407722408,1772700653423,-800.0,0.00046001,13]
[407722409,1772700653432,-800.0,0.00046001,13]
[407722410,1772700653442,-800.0,0.00046001,13]
[407722411,1772700653451,-800.0,0.00046001,13]
[407722412,1772700653461,-800.0,0.00046001,13]
[407722413,1772700653470,-800.0,0.00046001,13]
[407722414,1772700653479,-800.0,0.00046001,13]
[407722415,1772700653488,-800.0,0.00046001,13]
[407722416,1772700653498,-800.0,0.00046001,13]
[407722417,1772700653508,-800.0,0.00046001,13]
[407722418,1772700653517,-800.0,0.00046001,13]
[407722419,1772700653526,-800.0,0.00046001,13]
[407722420,1772700653535,-800.0,0.00046001,13]
[407722421,1772700653544,-800.0,0.00046001,13]
[407722422,1772700653553,-800.0,0.00046001,13]
[407722423,1772700653562,-800.0,0.00046001,13]
[407722424,1772700653572,-800.0,0.00046001,13]
[407722425,1772700653581,-800.0,0.00046001,13]
[407722426,1772700653590,-864.0,0.00046001,13]
[407722427,1772700653599,-200.0,0.00046001,2]
[407722428,1772700653609,-152.70275044,0.00046006,14]
[407722429,1772700653618,-1000.0,0.00046019,14]
[407722430,1772700653628,-1000.0,0.00046025,14]
[407722431,1772700653637,-1000.0,0.00046027,14]
[407722432,1772700653646,-1000.0,0.00046044,14]
[407722433,1772700653655,-1000.0,0.00046062,14]
[407722434,1772700653664,-1000.0,0.00046064,14]
[407722435,1772700653673,-1000.0,0.0004607,14]
[407722436,1772700653682,-1000.0,0.0004607,14]
[407722437,1772700653692,-1000.0,0.00046073,14]
[407722438,1772700653701,-150.0,0.00046076,120]